bitfinex/quotes_BTCUSD_20250505
["timestamp","ask_amount","ask_price","bid_price","bid_amount"]
[1746434786148,0.72981654,94853.0,94852.0,4.61925878]
[1746434786338,0.71428927,94853.0,94852.0,4.61725878]
[1746434786765,1.06212927,94853.0,94852.0,4.62025878]
[1746434786964,1.06412927,94853.0,94852.0,4.62025878]
[1746434788476,1.03269258,94853.0,94852.0,4.62025878]
[1746434789606,1.04922095,94853.0,94852.0,4.62025878]
[1746434792720,1.04922095,94853.0,94852.0,4.61865878]
[1746434793267,1.04922095,94853.0,94852.0,4.65135878]
[1746434793268,1.04822095,94853.0,94852.0,4.65135878]
[1746434793775,0.71822095,94853.0,94852.0,4.65135878]
[1746434793934,0.71822095,94853.0,94852.0,4.95135878]
[1746434794143,1.05822095,94853.0,94852.0,4.95135878]
[1746434794344,0.71822095,94853.0,94852.0,4.94986882]
[1746434794476,1.05822095,94853.0,94852.0,4.94686882]
[1746434794890,1.05822095,94853.0,94852.0,4.95186882]
[1746434795517,1.05822095,94853.0,94852.0,5.05738911]
[1746434795867,1.05622095,94853.0,94852.0,5.05738911]
[1746434796288,1.04069258,94853.0,94852.0,5.05738911]
[1746434797469,1.04069258,94853.0,94852.0,4.95186882]
[1746434800931,1.05721857,94853.0,94852.0,4.95186882]
[1746434806380,1.04069258,94853.0,94852.0,4.95186882]
[1746434807943,1.04069258,94853.0,94852.0,4.65186882]
[1746434808145,1.07212927,94853.0,94852.0,4.61916882]
[1746434808273,1.17764956,94853.0,94852.0,4.61916882]
[1746434808479,1.19414956,94853.0,94852.0,4.61916882]
[1746434808662,1.07212927,94853.0,94852.0,4.61916882]
[1746434809474,1.07212927,94853.0,94852.0,4.61416882]
[1746434809673,1.03969258,94853.0,94852.0,4.61416882]
[1746434809881,1.03969258,94853.0,94852.0,4.61716882]
[1746434810531,1.04069258,94853.0,94852.0,4.61716882]
[1746434810990,1.05722005,94853.0,94852.0,4.61716882]
[1746434815210,1.04069258,94853.0,94852.0,4.61716882]
[1746434818449,1.0572201,94853.0,94852.0,4.61716882]
[1746434819430,1.08865679,94853.0,94852.0,4.61716882]
[1746434820377,1.0572201,94853.0,94852.0,4.61716882]
[1746434822444,1.0582201,94853.0,94852.0,4.61716882]
[1746434823820,1.0582201,94853.0,94852.0,4.61416882]
[1746434824047,1.0582201,94853.0,94852.0,4.61616882]
[1746434826554,1.04169258,94853.0,94852.0,4.61616882]
[1746434829695,1.05822004,94853.0,94852.0,4.61616882]
[1746434830701,1.05822004,94853.0,94852.0,4.64706882]
[1746434835675,1.04169258,94853.0,94852.0,4.64706882]
[1746434836014,1.04169258,94853.0,94852.0,4.61616882]
[1746434836535,1.07312979,94853.0,94852.0,4.61616882]
[1746434838038,1.04169258,94853.0,94852.0,4.61616882]
[1746434838784,1.05821974,94853.0,94852.0,4.61616882]
[1746434846410,1.04169258,94853.0,94852.0,4.61616882]
[1746434849483,1.04169258,94853.0,94852.0,4.63176882]
[1746434849657,1.05822023,94853.0,94852.0,4.61616882]
[1746434855412,1.04169258,94853.0,94852.0,4.61616882]
[1746434857919,1.07312979,94853.0,94852.0,4.61616882]
[1746434858579,1.08965697,94853.0,94852.0,4.61616882]
[1746434861292,1.10940757,94853.0,94852.0,4.61616882]
[1746434862635,1.10479821,94853.0,94852.0,4.61616882]
[1746434866407,1.08827103,94853.0,94852.0,4.61616882]
[1746434867260,1.05683382,94853.0,94852.0,4.61616882]
[1746434868262,1.05683382,94853.0,94852.0,4.61484882]
[1746434869658,1.07336152,94853.0,94852.0,4.61484882]
[1746434873272,1.07316693,94853.0,94852.0,4.61484882]
[1746434875413,1.05663923,94853.0,94852.0,4.61484882]
[1746434877903,1.37500323,94853.0,94852.0,4.61484882]
[1746434878666,1.39153092,94853.0,94852.0,4.61484882]
[1746434880480,1.07316692,94853.0,94852.0,4.61484882]
[1746434881084,1.07316692,94853.0,94852.0,4.62994882]
[1746434881291,1.07316692,94853.0,94852.0,4.64554882]
[1746434895337,1.12280782,94853.0,94852.0,4.61484882]
[1746434895522,1.12280782,94853.0,94852.0,2.57856882]
[1746434895523,1.19608692,94853.0,94852.0,2.57856882]
[1746434895672,1.28507952,94853.0,94852.0,2.57856882]
[1746434896013,1.71279183,94853.0,94852.0,2.57856882]
[1746434896243,1.67895683,94853.0,94852.0,2.57856882]
[1746434896437,1.57143654,94853.0,94852.0,2.57656882]
[1746434896643,1.57643654,94853.0,94852.0,2.57656882]
[1746434897202,1.58143654,94853.0,94852.0,2.57656882]
[1746434897734,1.58243654,94853.0,94852.0,2.57656882]
[1746434898099,1.58143654,94853.0,94852.0,2.57656882]
[1746434898295,1.51859933,94853.0,94852.0,2.57656882]
[1746434898501,1.35771633,94853.0,94852.0,2.57656882]
[1746434898823,1.33471633,94853.0,94852.0,2.57656882]
[1746434899728,1.21047533,94853.0,94852.0,2.57656882]
[1746434900082,1.22700372,94853.0,94852.0,2.57656882]
[1746434902070,1.11404672,94853.0,94852.0,2.57656882]
[1746434902663,1.11304672,94853.0,94852.0,2.57656882]
[1746434902873,1.10216762,94853.0,94852.0,2.60726882]
[1746434903085,1.11304672,94853.0,94852.0,2.60726882]
[1746434903275,1.10216762,94853.0,94852.0,2.60726882]
[1746434903398,1.11304672,94853.0,94852.0,2.60726882]
[1746434905417,1.10216762,94853.0,94852.0,2.60726882]
[1746434905620,1.11304672,94853.0,94852.0,2.60726882]
[1746434906500,1.09651833,94853.0,94852.0,2.60726882]
[1746434909876,1.14448345,94853.0,94852.0,2.57656882]
[1746434911347,1.12795554,94853.0,94852.0,2.57656882]
[1746434914536,1.14448355,94853.0,94852.0,2.57656882]
[1746434915381,1.12795554,94853.0,94852.0,2.57656882]
[1746434919867,1.09651833,94853.0,94852.0,2.57656882]
[1746434920071,1.09651833,94853.0,94852.0,2.59236882]
[1746434921378,1.11304622,94853.0,94852.0,2.59236882]
[1746434924954,1.11304622,94853.0,94852.0,2.57656882]
[1746434926467,1.09651833,94853.0,94852.0,2.57656882]
[1746434926806,1.12795554,94853.0,94852.0,2.57656882]
[1746434929331,1.09651833,94853.0,94852.0,2.57656882]
[1746434929532,1.09651833,94853.0,94852.0,2.57552882]
[1746434929712,1.11304636,94853.0,94852.0,2.57552882]
[1746434930337,1.11304636,94853.0,94852.0,2.57533423]
[1746434935155,1.14448357,94853.0,94852.0,2.57533423]
[1746434938693,1.11304636,94853.0,94852.0,2.57533423]
[1746434941633,1.14448357,94853.0,94852.0,2.57533423]
[1746434942230,1.12795554,94853.0,94852.0,2.57533423]
[1746434945895,1.09651833,94853.0,94852.0,2.57533423]
[1746434948985,1.12795554,94853.0,94852.0,2.57533423]
[1746434949483,1.10820494,94853.0,94852.0,2.57533423]
[1746434949698,1.1279438,94853.0,94852.0,2.57533423]
[1746434952182,1.14447184,94853.0,94852.0,2.57533423]
[1746434956404,1.1279438,94853.0,94852.0,2.57533423]
[1746434959574,1.1444718,94853.0,94852.0,2.57533423]
[1746434966286,1.1279438,94853.0,94852.0,2.57533423]
[1746434967957,1.14447185,94853.0,94852.0,2.57533423]
[1746434970776,1.26919583,94853.0,94852.0,2.57533423]
[1746434971073,1.24099214,94853.0,94852.0,2.57533423]
[1746434972117,1.13547185,94853.0,94852.0,2.57533423]
[1746434974194,1.10403464,94853.0,94852.0,2.57533423]
[1746434974398,1.10303464,94853.0,94852.0,2.57533423]
[1746434974571,1.10303464,94853.0,94852.0,2.59113423]
[1746434976440,1.08650659,94853.0,94852.0,2.59113423]
[1746434977043,1.11611418,94853.0,94852.0,2.59113423]
[1746434977985,1.11611418,94853.0,94852.0,2.57533423]
[1746434979436,1.13264254,94853.0,94852.0,2.57533423]
[1746434982607,1.16407975,94853.0,94852.0,2.57533423]
[1746434986620,1.14755139,94853.0,94852.0,2.57533423]
[1746434989505,1.1640798,94853.0,94852.0,2.57533423]
[1746434993929,1.29880378,94853.0,94852.0,2.57533423]
[1746434995979,1.27060009,94853.0,94852.0,2.57533423]
[1746434996479,1.25407168,94853.0,94852.0,2.57533423]
[1746434996931,1.14855139,94853.0,94852.0,2.57533423]
[1746434999378,2.05647439,94853.0,94852.0,2.57533423]
[1746434999686,2.07300294,94853.0,94852.0,2.57533423]
[1746435002020,2.07300294,94853.0,94852.0,2.57449423]
[1746435006638,2.05647439,94853.0,94852.0,2.57449423]
[1746435009095,2.01954939,94853.0,94852.0,2.57449423]
[1746435009599,2.03607785,94853.0,94852.0,2.57449423]
[1746435009799,1.78480585,94853.0,94852.0,2.57449423]
[1746435010243,1.89032614,94853.0,94852.0,2.57449423]
[1746435010409,1.78480585,94853.0,94852.0,2.57449423]
[1746435010830,1.16507985,94853.0,94852.0,2.57449423]
[1746435011122,1.78709785,94853.0,94852.0,2.57449423]
[1746435012020,1.32012585,94853.0,94852.0,2.57449423]
[1746435012224,1.16507985,94853.0,94852.0,2.58969423]
[1746435012518,1.16507985,94853.0,94852.0,2.60579423]
[1746435012761,1.12176354,94853.0,94852.0,2.60579423]
[1746435012938,1.10303505,94853.0,94852.0,2.60579423]
[1746435013692,1.10203505,94853.0,94852.0,2.60579423]
[1746435013899,1.10303505,94853.0,94852.0,2.60579423]
[1746435014120,1.09303505,94853.0,94852.0,2.60579423]
[1746435014370,1.09703505,94853.0,94852.0,2.60579423]
[1746435016709,1.08050659,94853.0,94852.0,2.60579423]
[1746435016917,1.1119438,94853.0,94852.0,2.60579423]
[1746435017978,1.1010647,94853.0,94852.0,2.60579423]
[1746435018152,1.1119438,94853.0,94852.0,2.60579423]
[1746435019640,1.12847168,94853.0,94852.0,2.60579423]
[1746435022356,1.09703447,94853.0,94852.0,2.60579423]
[1746435023911,1.12847168,94853.0,94852.0,2.60579423]
[1746435024914,1.12846338,94853.0,94852.0,2.60579423]
[1746435027170,1.10873282,94853.0,94852.0,2.60579423]
[1746435027379,1.12846124,94853.0,94852.0,2.60579423]
[1746435030703,1.11193336,94853.0,94852.0,2.60579423]
[1746435033660,1.12846129,94853.0,94852.0,2.60579423]
[1746435036826,1.11193336,94853.0,94852.0,2.60579423]
[1746435038834,1.11193336,94853.0,94852.0,2.6007027]
[1746435039926,1.12846124,94853.0,94852.0,2.6007027]
[1746435044988,1.12846124,94853.0,94852.0,2.5846027]
[1746435046984,1.11193336,94853.0,94852.0,2.5846027]
[1746435047926,1.06961705,94853.0,94852.0,2.5998027]
[1746435048649,1.06561705,94853.0,94852.0,2.5998027]
[1746435048772,1.09605426,94853.0,94852.0,2.5998027]
[1746435048978,1.09705426,94853.0,94852.0,2.6018027]
[1746435049577,1.11358138,94853.0,94852.0,2.6018027]
[1746435051008,1.08214417,94853.0,94852.0,2.6018027]
[1746435056595,1.06561705,94853.0,94852.0,2.6018027]
[1746435058020,1.06542444,94853.0,94852.0,2.6018027]
[1746435059445,1.08195193,94853.0,94852.0,2.6018027]
[1746435066221,1.24088853,94853.0,94852.0,2.5714027]
[1746435066424,1.70389222,94853.0,94852.0,2.5714027]
[1746435066627,4.52897189,94853.0,94852.0,2.5714027]
[1746435066862,3.86507489,94853.0,94852.0,2.5714027]
[1746435067049,2.6004512,94853.0,94852.0,2.5714027]
[1746435067195,2.5759212,94853.0,94852.0,2.5694027]
[1746435067599,2.5819212,94853.0,94852.0,2.5694027]
[1746435068024,2.5849212,94853.0,94852.0,2.5694027]
[1746435068227,2.47940091,94853.0,94852.0,2.5694027]
[1746435069281,2.4959294,94853.0,94852.0,2.5694027]
[1746435076456,2.4959294,94853.0,94852.0,2.5687227]
[1746435076658,2.46631624,94853.0,94852.0,2.5687227]
[1746435077077,2.44978775,94853.0,94852.0,2.5687227]
[1746435079056,2.60307943,94853.0,94852.0,2.5687227]
[1746435079484,1.71493243,94853.0,94852.0,2.5687227]
[1746435079843,1.70593243,94853.0,94852.0,2.5687227]
[1746435080037,6.08952293,94853.0,94852.0,2.5687227]
[1746435080358,6.09452293,94853.0,94852.0,2.5687227]
[1746435080570,6.08952293,94853.0,94852.0,2.5687227]
[1746435080970,6.09452293,94853.0,94852.0,2.5687227]
[1746435081198,6.04388203,94853.0,94852.0,2.5687227]
[1746435082142,6.07178599,94853.0,94852.0,2.5687227]
[1746435088428,6.05525549,94853.0,94852.0,2.5687227]
[1746435088587,6.06979634,94853.0,94852.0,2.5687227]
[1746435089574,6.08632696,94853.0,94852.0,2.5687227]
[1746435094899,1.71926696,94853.0,94852.0,2.5687227]
[1746435095262,6.08632696,94853.0,94852.0,2.5687227]
[1746435095465,6.04838196,94853.0,94852.0,2.5687227]
[1746435096860,6.03185134,94853.0,94852.0,2.5687227]
[1746435098928,1.70273634,94853.0,94852.0,2.5687227]
[1746435099358,6.06979634,94853.0,94852.0,2.5687227]
[1746435099553,6.08632692,94853.0,94852.0,2.5687227]
[1746435103466,6.07022692,94853.0,94852.0,2.5687227]
[1746435105564,6.05522692,94853.0,94852.0,2.5687227]
[1746435106401,1.68816692,94853.0,94852.0,2.5687227]
[1746435106585,6.05522692,94853.0,94852.0,2.5687227]
[1746435108186,6.03869634,94853.0,94852.0,2.5687227]
[1746435109855,5.9186352,94853.0,94852.0,2.5687227]
[1746435110123,3.7656282,94853.0,94852.0,2.5687227]
[1746435110974,3.78215852,94853.0,94852.0,2.5687227]
[1746435117735,1.56810552,94853.0,94852.0,2.5687227]
[1746435117922,5.93516552,94853.0,94852.0,2.5687227]
[1746435118137,6.04068581,94853.0,94852.0,2.5687227]
[1746435118806,6.02415549,94853.0,94852.0,2.5687227]
[1746435121451,6.040686,94853.0,94852.0,2.5687227]
[1746435125710,0.01554085,94848.0,94847.0,7.66055126]
[1746435125914,5.12406454,94848.0,94847.0,7.66055126]
[1746435126113,5.28250401,94848.0,94847.0,7.66055126]
[1746435126324,5.30223243,94848.0,94847.0,7.66055126]
[1746435126537,5.71603243,94848.0,94847.0,7.66055126]
[1746435126885,5.72503243,94848.0,94847.0,7.66055126]
[1746435127516,5.71253243,94848.0,94847.0,7.66055126]
[1746435128033,5.70953243,94848.0,94847.0,7.66055126]
[1746435128188,5.70053243,94848.0,94847.0,7.66055126]
[1746435128396,5.72963243,94848.0,94847.0,7.66055126]
[1746435128984,5.74616387,94848.0,94847.0,7.66055126]
[1746435129581,5.73106387,94848.0,94847.0,7.66055126]
[1746435130093,5.74606387,94848.0,94847.0,7.66055126]
[1746435130521,5.73106387,94848.0,94847.0,7.66055126]
[1746435131560,5.71596387,94848.0,94847.0,7.66055126]
[1746435132906,5.73236387,94848.0,94847.0,7.66055126]
[1746435133708,5.71596387,94848.0,94847.0,7.66055126]
[1746435134444,5.71596387,94848.0,94847.0,7.59812689]
[1746435134651,5.74706387,94848.0,94847.0,7.59812689]
[1746435134830,5.71706387,94848.0,94847.0,7.59812689]
[1746435135020,5.71706387,94848.0,94847.0,7.58159359]
[1746435135371,5.72828943,94848.0,94847.0,7.58159359]
[1746435135771,5.75789444,94848.0,94847.0,7.58159359]
[1746435136374,5.74789444,94848.0,94847.0,7.55147982]
[1746435137287,5.75089444,94848.0,94847.0,7.55247982]
[1746435137514,5.76489444,94848.0,94847.0,7.55247982]
[1746435137669,5.76189444,94848.0,94847.0,7.55147982]
[1746435138088,5.76689444,94848.0,94847.0,7.55247982]
[1746435138303,5.78342756,94848.0,94847.0,7.55247982]
[1746435144262,5.77941492,94848.0,94847.0,7.55247982]
[1746435145750,5.77941492,94848.0,94847.0,7.55228721]
[1746435146389,5.7628818,94848.0,94847.0,7.55228721]
[1746435149326,5.77941522,94848.0,94847.0,7.55228721]
[1746435149528,5.82941522,94848.0,94847.0,7.55228721]
[1746435149741,5.8128818,94848.0,94847.0,7.53575363]
[1746435150743,5.82941528,94848.0,94847.0,7.53575363]
[1746435151276,6.17845528,94848.0,94847.0,7.53575363]
[1746435151633,6.81139528,94848.0,94847.0,7.53575363]
[1746435151833,6.70565928,94848.0,94847.0,7.53575363]
[1746435156473,6.6891258,94848.0,94847.0,7.53575363]
[1746435158747,6.5601258,94848.0,94847.0,7.53575363]
[1746435158932,6.7101258,94848.0,94847.0,6.62074495]
[1746435159339,6.72666001,94848.0,94847.0,6.62074495]
[1746435159546,6.72166001,94848.0,94847.0,6.57615087]
[1746435159750,6.7051258,94848.0,94847.0,6.57615087]
[1746435159948,6.7131258,94848.0,94847.0,6.57715087]
[1746435160174,7.2131258,94848.0,94847.0,6.55056499]
[1746435160520,7.2051258,94848.0,94847.0,6.54956499]
[1746435160720,7.21566099,94848.0,94847.0,6.55056499]
[1746435160955,7.23266099,94848.0,94847.0,6.55056499]
[1746435161170,7.21566099,94848.0,94847.0,6.55056499]
[1746435161646,7.23266099,94848.0,94847.0,6.55056499]
[1746435163085,7.28596099,94848.0,94847.0,6.55056499]
[1746435163254,7.2837455,94848.0,94847.0,6.55056499]
[1746435164863,7.1017965,94848.0,94847.0,6.55056499]
[1746435166444,7.07899677,94848.0,94847.0,6.55056499]
[1746435166648,7.08526131,94848.0,94847.0,6.55056499]
[1746435167934,7.06246158,94848.0,94847.0,6.55056499]
[1746435168341,7.08526131,94848.0,94847.0,6.55056499]
[1746435169429,7.1017965,94848.0,94847.0,6.55056499]
[1746435169606,7.04899677,94848.0,94847.0,6.53402981]
[1746435169804,7.05526131,94848.0,94847.0,6.53402981]
[1746435171171,2.34294631,94848.0,94847.0,6.53402981]
[1746435171369,2.84294631,94848.0,94847.0,6.53402981]
[1746435171579,7.82480231,94848.0,94847.0,6.53402981]
[1746435171782,7.83934316,94848.0,94847.0,6.53402981]
[1746435173694,7.81654343,94848.0,94847.0,6.53402981]
[1746435174100,7.83934316,94848.0,94847.0,6.53402981]
[1746435175197,7.83934316,94848.0,94847.0,6.51749477]
[1746435175492,7.83934316,94848.0,94847.0,6.50479774]
[1746435177295,7.81654343,94848.0,94847.0,6.50479774]
[1746435177633,7.83934316,94848.0,94847.0,6.50479774]
[1746435181801,7.81654343,94848.0,94847.0,6.50479774]
[1746435182011,7.81654343,94848.0,94847.0,6.488264]
[1746435182150,7.78863947,94848.0,94847.0,6.488264]
[1746435184032,7.77263947,94848.0,94847.0,6.488264]
[1746435184941,7.71933947,94848.0,94847.0,6.488264]
[1746435185093,7.71933947,94848.0,94847.0,6.47172958]
[1746435185697,7.71933947,94848.0,94847.0,6.45903206]
[1746435186282,7.72077389,94848.0,94847.0,6.45903206]
[1746435189019,7.74391348,94848.0,94847.0,6.45903206]
[1746435189805,7.74391348,94848.0,94847.0,6.45773206]
[1746435191108,7.72737906,94848.0,94847.0,6.45773206]
[1746435192379,7.74391349,94848.0,94847.0,6.45773206]
[1746435192894,7.76205749,94848.0,94847.0,6.45773206]
[1746435193674,7.7389179,94848.0,94847.0,6.45773206]
[1746435193901,5.6043239,94848.0,94847.0,6.45773206]
[1746435196491,5.58778947,94848.0,94847.0,6.45773206]
[1746435197523,5.56806105,94848.0,94847.0,6.45773206]
[1746435199533,5.58459543,94848.0,94847.0,4.62805206]
[1746435201837,5.47807514,94848.0,94847.0,3.14455206]
[1746435202048,5.47807514,94848.0,94847.0,2.94255206]
[1746435202268,5.40217214,94848.0,94847.0,2.84155206]
[1746435202484,5.50769243,94848.0,94847.0,2.84155206]
[1746435202918,5.31417443,94848.0,94847.0,2.84155206]
[1746435203275,5.18548043,94848.0,94847.0,2.84155206]
[1746435206111,5.16894605,94848.0,94847.0,2.84155206]
[1746435207860,5.19208564,94848.0,94847.0,2.84155206]
[1746435209511,5.19208564,94848.0,94847.0,2.82501701]
[1746435212518,5.19208564,94848.0,94847.0,2.80848286]
[1746435213476,2.71479464,94848.0,94847.0,2.80848286]
[1746435213654,6.63317864,94848.0,94847.0,2.80848286]
[1746435215121,6.39904564,94848.0,94847.0,2.80848286]
[1746435215605,6.39904564,94848.0,94847.0,2.79194871]
[1746435217288,6.39904564,94848.0,94847.0,2.77584871]
[1746435219224,6.36290464,94848.0,94847.0,2.77584871]
[1746435219426,6.33170664,94848.0,94847.0,2.77584871]
[1746435219873,6.34824172,94848.0,94847.0,2.77584871]
[1746435221653,6.34824172,94848.0,94847.0,2.75931362]
[1746435221832,6.33170664,94848.0,94847.0,2.75931362]
[1746435222944,6.34824151,94848.0,94847.0,2.75931362]
[1746435225036,5.74112551,94848.0,94847.0,2.75931362]
[1746435227052,5.53682051,94848.0,94847.0,2.75931362]
[1746435227257,5.37915451,94848.0,94847.0,2.75931362]
[1746435229366,5.29320851,94848.0,94847.0,2.75931362]
[1746435235389,5.27006892,94848.0,94847.0,2.75931362]
[1746435237754,5.27006892,94848.0,94847.0,2.74391362]
[1746435240562,5.27006892,94848.0,94847.0,2.76031362]
[1746435241305,2.70818992,94848.0,94847.0,2.76031362]
[1746435241513,6.51579992,94848.0,94847.0,2.74391362]
[1746435241724,6.5630173,94848.0,94847.0,2.74391362]
[1746435242678,6.55970464,94848.0,94847.0,2.74391362]
[1746435242956,6.53656505,94848.0,94847.0,2.74391362]
[1746435243607,6.42936505,94848.0,94847.0,0.001]
[1746435243816,0.44888459,94843.0,94842.0,2.91421713]
[1746435244023,3.36057646,94843.0,94842.0,2.91421713]
[1746435244198,3.38034159,94843.0,94842.0,2.51021713]
[1746435244408,3.41210559,94843.0,94842.0,2.30821713]
[1746435246043,3.91210559,94843.0,94842.0,2.30821713]
[1746435246241,3.92910559,94843.0,94842.0,2.30821713]
[1746435247074,3.93410559,94843.0,94842.0,2.30821713]
[1746435247680,3.96630559,94843.0,94842.0,2.30821713]
[1746435248175,3.95030559,94843.0,94842.0,2.30821713]
[1746435248378,3.93410559,94843.0,94842.0,2.30821713]
[1746435249494,3.93410559,94843.0,94842.0,2.29168085]
[1746435252538,3.93410559,94843.0,94842.0,2.27514506]
[1746435252918,3.95724518,94843.0,94842.0,2.27514506]
[1746435253896,3.93410559,94843.0,94842.0,2.27514506]
[1746435255567,3.93410559,94843.0,94842.0,2.25860929]
[1746435256745,3.95064137,94843.0,94842.0,2.25860929]
[1746435260431,3.95064137,94843.0,94842.0,2.24207309]
[1746435260744,3.93410559,94843.0,94842.0,2.24207309]
[1746435261368,3.95064185,94843.0,94842.0,2.24207309]
[1746435262124,4.29980185,94843.0,94842.0,2.24207309]
[1746435263148,4.79980185,94843.0,94842.0,2.24207309]
[1746435263352,5.01067666,94843.0,94842.0,2.24207309]
[1746435264649,2.70458966,94843.0,94842.0,2.24207309]
[1746435264971,5.01067666,94843.0,94842.0,2.24207309]
[1746435265764,5.01067666,94843.0,94842.0,2.22553689]
[1746435265971,4.9941404,94843.0,94842.0,2.22553689]
[1746435267860,4.93914054,94843.0,94842.0,2.22553689]
[1746435268097,4.93914054,94843.0,94842.0,2.25723689]
[1746435268098,4.65740169,94843.0,94842.0,2.25723689]
[1746435268274,4.42817969,94843.0,94842.0,1.34823689]
[1746435268509,4.42817969,94843.0,94842.0,0.74223689]
[1746435268681,4.35841456,94843.0,94842.0,0.54023689]
[1746435268906,0.55088593,94838.0,94837.0,7.17050748]
[1746435269103,0.55088593,94838.0,94837.0,7.17055293]
[1746435269104,2.67657794,94838.0,94837.0,7.17055293]
[1746435269458,2.69111879,94838.0,94837.0,7.17055293]
[1746435269658,3.03326878,94838.0,94837.0,7.17055293]
[1746435269863,3.04980318,94838.0,94837.0,7.17055293]
[1746435270062,3.05380318,94838.0,94837.0,7.17055293]
[1746435270322,3.06680318,94838.0,94837.0,7.17055293]
[1746435270492,3.19794618,94838.0,94837.0,7.17055293]
[1746435270690,3.16932347,94838.0,94837.0,7.17055293]
[1746435270891,3.18439991,94838.0,94837.0,7.17055293]
[1746435271092,3.19894076,94838.0,94837.0,7.17055293]
[1746435271421,3.09322789,94838.0,94837.0,7.17055293]
[1746435271762,3.09322789,94838.0,94837.0,7.18655293]
[1746435271965,3.09322789,94838.0,94837.0,7.20295293]
[1746435273310,3.50702789,94838.0,94837.0,7.20295293]
[1746435273514,3.4774106,94838.0,94837.0,7.20295293]
[1746435274481,3.58293089,94838.0,94837.0,7.20295293]
[1746435275665,3.4774106,94838.0,94837.0,7.20295293]
[1746435276582,1.1713236,94838.0,94837.0,7.20295293]
[1746435276878,3.4774106,94838.0,94837.0,7.20295293]
[1746435278634,3.5070095,94838.0,94837.0,7.20295293]
[1746435285492,3.53014909,94838.0,94837.0,7.20295293]
[1746435285948,3.63566938,94838.0,94837.0,7.20295293]
[1746435286205,3.98474938,94838.0,94837.0,7.20295293]
[1746435287973,3.96160979,94838.0,94837.0,7.20295293]
[1746435294241,3.8560895,94838.0,94837.0,7.20295293]
[1746435294443,1.57314209,94838.0,94837.0,7.20295293]
[1746435294777,3.87922909,94838.0,94837.0,7.20295293]
[1746435296629,3.87922909,94838.0,94837.0,7.18655293]
[1746435297206,3.87922909,94838.0,94837.0,7.17055293]
[1746435297409,3.98474938,94838.0,94837.0,7.17055293]
[1746435298667,4.00452315,94838.0,94837.0,7.17055293]
[1746435300312,4.01452315,94838.0,94837.0,7.17055293]
[1746435300512,4.01452315,94838.0,94837.0,6.64355293]
[1746435300513,4.04752315,94838.0,94837.0,6.64355293]
[1746435300693,4.14162761,94838.0,94837.0,5.12855293]
[1746435301106,4.11852315,94838.0,94837.0,4.92655293]
[1746435301307,4.59538356,94838.0,94837.0,4.92655293]
[1746435301870,4.58238356,94838.0,94837.0,4.92655293]
[1746435302161,4.59738356,94838.0,94837.0,4.92655293]
[1746435302361,4.62452315,94838.0,94837.0,4.92655293]
[1746435303721,4.62052315,94838.0,94837.0,4.92655293]
[1746435303920,4.60852315,94838.0,94837.0,4.92655293]
[1746435304162,4.62452315,94838.0,94837.0,4.92655293]
[1746435308770,4.64762761,94838.0,94837.0,4.92655293]
[1746435310581,4.62452315,94838.0,94837.0,4.92655293]
[1746435312490,4.60138356,94838.0,94837.0,4.92655293]
[1746435314350,2.29529656,94838.0,94837.0,4.92655293]
[1746435314693,4.60006056,94838.0,94837.0,4.92655293]
[1746435317311,5.10006056,94838.0,94837.0,4.92655293]
[1746435318328,5.12320015,94838.0,94837.0,4.92655293]
[1746435320045,5.12320015,94838.0,94837.0,4.91001618]
[1746435325290,5.12320015,94838.0,94837.0,4.58089509]
[1746435325291,5.14876733,94838.0,94837.0,4.58089509]
[1746435325496,5.14876733,94838.0,94831.0,0.001]
[1746435325497,0.64663834,94833.0,94832.0,7.06530627]
[1746435325709,5.87953724,94833.0,94832.0,6.81511427]
[1746435325877,5.98505753,94833.0,94832.0,6.61311427]
[1746435326087,5.98505753,94833.0,94832.0,6.20911427]
[1746435326293,6.0365973,94833.0,94832.0,6.10811427]
[1746435327027,6.5365973,94833.0,94832.0,6.10811427]
[1746435327425,6.5365973,94833.0,94832.0,5.80511427]
[1746435327791,6.5545973,94833.0,94832.0,5.80511427]
[1746435327995,6.5605973,94833.0,94832.0,5.80511427]
[1746435329033,6.9743973,94833.0,94832.0,5.80511427]
[1746435329594,6.99093454,94833.0,94832.0,5.80511427]
[1746435332303,1.99093454,94833.0,94832.0,5.80511427]
[1746435332505,6.99093454,94833.0,94832.0,5.80511427]
[1746435334625,6.97483454,94833.0,94832.0,5.80511427]
[1746435336670,6.95973454,94833.0,94832.0,5.80511427]
[1746435338961,7.30889454,94833.0,94832.0,5.80511427]
[1746435340221,7.28912077,94833.0,94832.0,5.80511427]
[1746435340355,7.30887445,94833.0,94832.0,5.80511427]
[1746435347103,7.33444163,94833.0,94832.0,5.80511427]
[1746435347286,7.35758122,94833.0,94832.0,5.80511427]
[1746435349364,7.85758122,94833.0,94832.0,5.80511427]
[1746435350015,7.85758122,94833.0,94832.0,5.78857727]
[1746435351347,7.80758122,94833.0,94832.0,5.78857727]
[1746435355174,6.14334631,94833.0,94832.0,3.49577727]
[1746435355377,5.77334631,94833.0,94832.0,3.19277727]
[1746435355576,5.60901507,94833.0,94832.0,3.19277727]
[1746435355824,5.30135907,94833.0,94832.0,2.99077727]
[1746435356134,5.29189992,94833.0,94832.0,2.99077727]
[1746435356336,5.29735907,94833.0,94832.0,2.99077727]
[1746435356554,3.16630107,94833.0,94832.0,2.99077727]
[1746435356757,3.13670217,94833.0,94832.0,2.99077727]
[1746435356902,3.13370217,94833.0,94832.0,2.99077727]
[1746435357322,3.13670217,94833.0,94832.0,2.99077727]
[1746435357545,3.15170217,94833.0,94832.0,2.99077727]
[1746435357728,3.14870217,94833.0,94832.0,2.99077727]
[1746435357933,3.13370217,94833.0,94832.0,2.99077727]
[1746435358106,3.14770217,94833.0,94832.0,2.99077727]
[1746435358494,3.14870217,94833.0,94832.0,2.99077727]
[1746435358899,3.16523757,94833.0,94832.0,2.99077727]
[1746435359442,3.27075786,94833.0,94832.0,2.99077727]
[1746435360077,3.16523757,94833.0,94832.0,2.99077727]
[1746435363662,2.66523757,94833.0,94832.0,2.99077727]
[1746435364517,2.54888257,94833.0,94832.0,2.99077727]
[1746435364965,2.52912889,94833.0,94832.0,2.99077727]
[1746435365342,2.5587179,94833.0,94832.0,2.99077727]
[1746435365545,2.5421825,94833.0,94832.0,2.99077727]
[1746435367335,2.0402125,94833.0,94832.0,2.99077727]
[1746435367523,3.0249495,94833.0,94832.0,2.99077727]
[1746435367745,2.9477015,94833.0,94832.0,2.99077727]
[1746435369915,2.96423711,94833.0,94832.0,2.99077727]
[1746435374538,2.9873767,94833.0,94832.0,2.99077727]
[1746435375623,2.97084109,94833.0,94832.0,2.99077727]
[1746435377489,2.9477015,94833.0,94832.0,2.99077727]
[1746435378312,3.09090223,94833.0,94832.0,2.99077727]
[1746435378507,3.11646941,94833.0,94832.0,2.99077727]
[1746435378737,3.13300514,94833.0,94832.0,2.99077727]
[1746435378917,3.13300514,94833.0,94832.0,2.97567727]
[1746435379120,2.22551614,94833.0,94832.0,2.97567727]
[1746435379319,5.48412514,94833.0,94832.0,2.97567727]
[1746435380899,5.42870114,94833.0,94832.0,2.97567727]
[1746435382397,5.40556155,94833.0,94832.0,2.97567727]
[1746435383056,5.30004126,94833.0,94832.0,2.97567727]
[1746435384371,4.70133408,94833.0,94832.0,2.99197727]